fUSD/lending_fUSD_20240508
["ID","MTS","AMOUNT","RATE_DAILY","PERIOD"]
[326617105,1715149856811,-540.8,0.00019452,2]
[326617106,1715149856825,-500.0,0.00019452,2]
[326617107,1715149856838,-500.0,0.00019452,2]
[326617108,1715149856851,-500.0,0.00019452,2]
[326617109,1715149856864,-500.0,0.00019452,2]
[326617110,1715149856879,-500.0,0.00019452,2]
[326617111,1715149856892,-500.0,0.00019452,2]
[326617112,1715149856905,-500.0,0.00019452,2]
[326617113,1715149856918,-500.0,0.00019452,2]
[326617114,1715149856933,-500.0,0.00019452,2]
[326617115,1715149856947,-548.47243777,0.00019452,2]
[326617116,1715149856961,-500.0,0.00019452,2]
[326617117,1715149856975,-500.0,0.00019452,2]
[326617118,1715149856989,-500.0,0.00019452,2]
[326617119,1715149857002,-462.17781049,0.00019452,2]
[326617120,1715149857015,-3534.18,0.00019452,2]
[326617121,1715149857029,-508.39128273,0.00019452,2]
[326617122,1715149857043,-500.0,0.00019452,2]
[326617123,1715149857057,-573.9,0.00019452,2]
[326617124,1715149857070,-500.0,0.00019452,2]
[326617125,1715149857084,-982.56,0.00019452,2]
[326617126,1715149857097,-500.0,0.00019452,2]
[326617127,1715149857112,-500.0,0.00019452,2]
[326617128,1715149857127,-500.0,0.00019452,2]
[326617129,1715149857141,-502.52837981,0.00019452,2]
[326617130,1715149857154,-500.0,0.00019452,2]
[326617131,1715149857169,-582.52,0.00019452,2]
[326617132,1715149857182,-500.0,0.00019452,2]
[326617133,1715149857195,-500.0,0.00019452,2]
[326617134,1715149857212,-509.61928017,0.00019452,2]
[326617135,1715149857228,-500.0,0.00019452,2]
[326617136,1715149857244,-500.0,0.00019452,2]
[326617137,1715149857256,-500.0,0.00019452,2]
[326617138,1715149857383,-500.0,0.00019452,2]
[326617139,1715149857403,-500.0,0.00019452,2]
[326617140,1715149857413,-500.0,0.00019452,2]
[326617141,1715149857422,-510.17075884,0.00019452,2]
[326617142,1715149857431,-609.34,0.00019452,2]
[326617143,1715149857441,-500.0,0.00019452,2]
[326617144,1715149857450,-500.0,0.00019452,2]
[326617145,1715149857460,-500.0,0.00019452,2]
[326617146,1715149857470,-508.11088964,0.00019452,2]
[326617147,1715149857480,-511.62680852,0.00019452,2]
[326617148,1715149857490,-500.0,0.00019452,2]
[326617149,1715149857500,-512.34955307,0.00019452,2]
[326617150,1715149857509,-500.0,0.00019452,2]
[326617151,1715149857519,-500.0,0.00019452,2]
[326617152,1715149857529,-500.0,0.00019452,2]
[326617153,1715149857539,-500.0,0.00019452,2]
[326617154,1715149857548,-522.32913217,0.00019452,2]
[326617155,1715149857558,-500.0,0.00019452,2]
[326617156,1715149857568,-500.0,0.00019452,2]
[326617157,1715149857578,-500.0,0.00019452,2]
[326617158,1715149857588,-500.0,0.00019452,2]
[326617159,1715149857597,-500.0,0.00019452,2]
[326617160,1715149857607,-500.0,0.00019452,2]
[326617161,1715149857617,-500.0,0.00019452,2]
[326617162,1715149857629,-500.0,0.00019452,2]
[326617163,1715149857642,-507.83551748,0.00019452,2]
[326617164,1715149857651,-500.0,0.00019452,2]
[326617165,1715149857660,-500.0,0.00019452,2]
[326617166,1715149857669,-500.0,0.00019452,2]
[326617167,1715149857679,-500.0,0.00019452,2]
[326617168,1715149857688,-530.51192717,0.00019452,2]
[326617169,1715149857698,-500.0,0.00019452,2]
[326617170,1715149857707,-500.0,0.00019452,2]
[326617171,1715149857717,-500.0,0.00019452,2]
[326617172,1715149857726,-500.0,0.00019452,2]
[326617173,1715149857736,-582.15561886,0.00019452,2]
[326617174,1715149857745,-605.34,0.00019452,2]
[326617175,1715149857755,-500.0,0.00019452,2]
[326617176,1715149857764,-500.0,0.00019452,2]
[326617177,1715149857774,-500.0,0.00019452,2]
[326617178,1715149857783,-500.0,0.00019452,2]
[326617179,1715149857792,-500.0,0.00019452,2]
[326617180,1715149857802,-524.4885003,0.00019452,2]
[326617181,1715149857811,-500.0,0.00019452,2]
[326617182,1715149857821,-500.0,0.00019452,2]
[326617183,1715149857831,-500.0,0.00019452,2]
[326617184,1715149857840,-500.0,0.00019452,2]
[326617185,1715149857849,-500.0,0.00019452,2]
[326617186,1715149857858,-500.0,0.00019452,2]
[326617187,1715149857870,-500.0,0.00019452,2]
[326617188,1715149857879,-275.915295,0.00019452,2]
[326617189,1715149857888,-500.0,0.00019452,2]
[326617190,1715149857897,-913.04,0.00019452,2]
[326617191,1715149857906,-500.0,0.00019452,2]
[326617192,1715149857916,-186.659429,0.00019452,2]
[326617193,1715149857925,-500.0,0.00019452,2]
[326617194,1715149857934,-500.0,0.00019452,2]
[326617195,1715149857944,-500.0,0.00019452,2]
[326617196,1715149857953,-647.89,0.00019452,2]
[326617197,1715149857963,-500.0,0.00019452,2]
[326617198,1715149857972,-500.0,0.00019452,2]
[326617199,1715149857982,-500.0,0.00019452,2]
[326617200,1715149857991,-506.1279517,0.00019452,2]
[326617201,1715149858000,-500.0,0.00019452,2]
[326617202,1715149858010,-500.0,0.00019452,2]
[326617203,1715149858019,-500.0,0.00019452,2]
[326617204,1715149858028,-562.81,0.00019452,2]
[326617205,1715149858038,-500.0,0.00019452,2]
[326617206,1715149858047,-151.0,0.00019452,2]
[326617207,1715149858056,-249.828611,0.00019452,2]
[326617208,1715149858065,-512.81676135,0.00019452,2]
[326617209,1715149858074,-15777.08,0.00019452,2]
[326617210,1715149858083,-566.62802263,0.00019452,2]
[326617211,1715149858093,-509.23183307,0.00019452,2]
[326617212,1715149858102,-294.75466688,0.00019452,2]
[326617213,1715149858111,-500.0,0.00019452,2]
[326617214,1715149858124,-500.0,0.00019452,2]
[326617215,1715149858134,-500.0,0.00019452,2]
[326617216,1715149858144,-576.66,0.00019452,2]
[326617217,1715149858155,-500.0,0.00019452,2]
[326617218,1715149858164,-500.0,0.00019452,2]
[326617219,1715149858173,-500.0,0.00019452,2]
[326617220,1715149858183,-500.0,0.00019452,2]
[326617221,1715149858192,-512.6,0.00019452,2]
[326617222,1715149858201,-500.0,0.00019452,2]
[326617223,1715149858211,-500.0,0.00019452,2]
[326617224,1715149858221,-500.0,0.00019452,2]
[326617225,1715149858231,-500.0,0.00019452,2]
[326617226,1715149858240,-521.44700409,0.00019452,2]
[326617227,1715149858249,-500.0,0.00019452,2]
[326617228,1715149858258,-504.86,0.00019452,2]
[326617229,1715149858267,-500.0,0.00019452,2]
[326617230,1715149858276,-500.0,0.00019452,2]
[326617231,1715149858286,-500.0,0.00019452,2]
[326617232,1715149858295,-500.0,0.00019452,2]
[326617233,1715149858304,-500.0,0.00019452,2]
[326617234,1715149858314,-500.0,0.00019452,2]
[326617235,1715149858323,-2690.64,0.00019452,2]
[326617236,1715149858333,-509.32260718,0.00019452,2]
[326617237,1715149858342,-500.0,0.00019452,2]
[326617238,1715149858351,-500.0,0.00019452,2]
[326617239,1715149858360,-500.0,0.00019452,2]
[326617240,1715149858372,-500.0,0.00019452,2]
[326617241,1715149858381,-500.0,0.00019452,2]
[326617242,1715149858391,-500.0,0.00019452,2]
[326617243,1715149858400,-445.12271568,0.00019452,2]
[326617244,1715149858409,-500.0,0.00019452,2]
[326617245,1715149858418,-500.0,0.00019452,2]
[326617246,1715149858427,-1360.34,0.00019452,2]
[326617247,1715149858436,-500.0,0.00019452,2]
[326617248,1715149858446,-500.0,0.00019452,2]
[326617249,1715149858455,-500.0,0.00019452,2]
[326617250,1715149858464,-500.0,0.00019452,2]
[326617251,1715149858473,-500.0,0.00019452,2]
[326617252,1715149858483,-500.0,0.00019452,2]
[326617253,1715149858492,-500.0,0.00019452,2]
[326617254,1715149858501,-500.0,0.00019452,2]
[326617255,1715149858511,-500.0,0.00019452,2]
[326617256,1715149858520,-515.81712556,0.00019452,2]
[326617257,1715149858529,-500.0,0.00019452,2]
[326617258,1715149858538,-500.0,0.00019452,2]
[326617259,1715149858547,-500.0,0.00019452,2]
[326617260,1715149858556,-545.75,0.00019452,2]
[326617261,1715149858565,-500.0,0.00019452,2]
[326617262,1715149858574,-500.0,0.00019452,2]
[326617263,1715149858583,-500.0,0.00019452,2]
[326617264,1715149858592,-500.0,0.00019452,2]
[326617265,1715149858602,-500.0,0.00019452,2]
[326617266,1715149858612,-515.5709345,0.00019452,2]
[326617267,1715149858623,-500.0,0.00019452,2]
[326617268,1715149858632,-306.74380279,0.00019452,2]
[326617269,1715149858641,-500.0,0.00019452,2]
[326617270,1715149858650,-516.18222325,0.00019452,2]
[326617271,1715149858659,-500.0,0.00019452,2]
[326617272,1715149858668,-500.0,0.00019452,2]
[326617273,1715149858678,-510.14560703,0.00019452,2]
[326617274,1715149858688,-500.0,0.00019452,2]
[326617275,1715149858698,-500.0,0.00019452,2]
[326617276,1715149858708,-500.0,0.00019452,2]
[326617277,1715149858717,-513.07792868,0.00019452,2]
[326617278,1715149858727,-500.0,0.00019452,2]
[326617279,1715149858736,-500.0,0.00019452,2]
[326617280,1715149858746,-500.0,0.00019452,2]
[326617281,1715149858756,-151.0,0.00019452,2]
[326617282,1715149858765,-7482.51,0.00019452,2]
[326617283,1715149858775,-1009.281128,0.000195,2]
[326617284,1715149858785,-150.0,0.00019582,3]
[326617285,1715149858794,-150.5,0.00019604,15]
[326617286,1715149858805,-158.72050771,0.00019649,2]
[326617287,1715149858814,-155.28,0.00019661,15]
[326617288,1715149858823,-150.5,0.00019661,15]
[326617289,1715149858833,-150.5,0.00019671,15]
[326617290,1715149858842,-150.5,0.00019671,15]
[326617291,1715149858852,-151.31,0.00019681,15]
[326617292,1715149858861,-150.91,0.00019681,15]
[326617293,1715149858873,-150.78,0.00019681,15]
[326617294,1715149858883,-150.5,0.00019681,15]
[326617295,1715149858892,-151.16,0.00019681,15]
[326617296,1715149858901,-150.74,0.00019681,15]
[326617297,1715149858911,-151.14,0.00019681,15]
[326617298,1715149858921,-150.5,0.00019681,15]
[326617299,1715149858931,-154.19350589,0.00019706,2]
[326617300,1715149858941,-216.2695978,0.00019726,2]
[326617301,1715149858951,-153.96745623,0.00019726,2]
[326617302,1715149858961,-176.23367724,0.00019726,2]
[326617303,1715149858970,-500.0,0.00019726,2]
[326617304,1715149858980,-500.0,0.00019726,2]
[326617305,1715149858989,-500.0,0.00019726,2]
[326617306,1715149858998,-500.0,0.00019726,2]
[326617307,1715149859008,-360.58307095,0.00019726,2]
[326617308,1715149859018,-521.02587257,0.00019726,2]
[326617309,1715149859027,-518.37610134,0.00019726,2]
[326617310,1715149859038,-500.0,0.00019726,2]
[326617311,1715149859048,-591.58448352,0.00019726,2]
[326617312,1715149859058,-567.85205538,0.00019726,2]
[326617313,1715149859068,-232.82656396,0.00019726,2]
[326617314,1715149859077,-407.29588136,0.00019726,2]
[326617315,1715149859087,-519.37203477,0.00019726,2]
[326617316,1715149859097,-500.0,0.00019726,2]
[326617317,1715149859107,-519.26772258,0.00019726,2]
[326617318,1715149859116,-518.29883443,0.00019726,2]
[326617319,1715149859128,-476.46,0.00019726,2]
[326617320,1715149859138,-627.65179441,0.00019726,2]
[326617321,1715149859147,-581.53012296,0.00019726,2]
[326617322,1715149859157,-200.27146714,0.00019726,2]
[326617323,1715149859167,-521.47881603,0.00019726,2]
[326617324,1715149859176,-500.0,0.00019726,2]
[326617325,1715149859185,-500.0,0.00019726,2]
[326617326,1715149859195,-500.0,0.00019726,2]
[326617327,1715149859204,-510.98158268,0.00019726,2]
[326617328,1715149859214,-500.0,0.00019726,2]
[326617329,1715149859224,-209.06,0.00019726,2]
[326617330,1715149859234,-568.94,0.00019726,2]
[326617331,1715149859244,-518.34770593,0.00019726,2]
[326617332,1715149859342,-481.87771454,0.00019726,2]
[326617333,1715149859352,-500.0,0.00019726,2]
[326617334,1715149859362,-514.57250317,0.00019726,2]
[326617335,1715149859374,-539.9,0.00019726,2]
[326617336,1715149859384,-519.28855519,0.00019726,2]
[326617337,1715149859393,-520.04690969,0.00019726,2]
[326617338,1715149859402,-582.38,0.00019726,2]
[326617339,1715149859411,-500.0,0.00019726,2]
[326617340,1715149859420,-511.10125893,0.00019726,2]
[326617341,1715149859429,-515.33286741,0.00019726,2]
[326617342,1715149859439,-500.0,0.00019726,2]
[326617343,1715149859448,-523.65650801,0.00019726,2]
[326617344,1715149859457,-500.0,0.00019726,2]
[326617345,1715149859466,-519.06406124,0.00019726,2]
[326617346,1715149859475,-500.0,0.00019726,2]
[326617347,1715149859485,-647.15237175,0.00019726,2]
[326617348,1715149859495,-500.0,0.00019726,2]
[326617349,1715149859504,-202.46669835,0.00019726,2]
[326617350,1715149859513,-500.0,0.00019726,2]
[326617351,1715149859522,-500.0,0.00019726,2]
[326617352,1715149859532,-151.0,0.00019726,2]
[326617353,1715149859541,-500.0,0.00019726,2]
[326617354,1715149859551,-500.0,0.00019726,2]
[326617355,1715149859560,-500.0,0.00019726,2]
[326617356,1715149859569,-510.90356984,0.00019726,2]
[326617357,1715149859579,-327.9972131,0.00019726,2]
[326617358,1715149859588,-514.90511414,0.00019726,2]
[326617359,1715149859597,-524.06228019,0.00019726,2]
[326617360,1715149859606,-500.0,0.00019726,2]
[326617361,1715149859616,-500.0,0.00019726,2]
[326617362,1715149859626,-500.0,0.00019726,2]
[326617363,1715149859636,-500.0,0.00019726,2]
[326617364,1715149859645,-500.0,0.00019726,2]
[326617365,1715149859654,-500.0,0.00019726,2]
[326617366,1715149859664,-500.0,0.00019726,2]
[326617367,1715149859674,-500.0,0.00019726,2]
[326617368,1715149859684,-584.53840044,0.00019726,2]
[326617369,1715149859692,-500.0,0.00019726,2]
[326617370,1715149859702,-251.91838285,0.00019726,2]
[326617371,1715149859712,-500.0,0.00019726,2]
[326617372,1715149859721,-297.28253628,0.00019726,2]
[326617373,1715149859731,-492.91463145,0.00019726,2]
[326617374,1715149859740,-593.76730027,0.00019726,2]
[326617375,1715149859750,-500.0,0.00019726,2]
[326617376,1715149859759,-500.0,0.00019726,2]
[326617377,1715149859768,-500.0,0.00019726,2]
[326617378,1715149859778,-500.0,0.00019726,2]
[326617379,1715149859787,-500.0,0.00019726,2]
[326617380,1715149859797,-500.0,0.00019726,2]
[326617381,1715149859806,-500.0,0.00019726,2]
[326617382,1715149859816,-357.9,0.00019726,2]
[326617383,1715149859825,-500.0,0.00019726,2]
[326617384,1715149859835,-500.0,0.00019726,2]
[326617385,1715149859845,-500.0,0.00019726,2]
[326617386,1715149859855,-500.0,0.00019726,2]
[326617387,1715149859865,-585.81522996,0.00019726,2]
[326617388,1715149859876,-500.0,0.00019726,2]
[326617389,1715149859885,-600.93094758,0.00019726,2]
[326617390,1715149859895,-500.0,0.00019726,2]
[326617391,1715149859905,-500.0,0.00019726,2]
[326617392,1715149859914,-201.96,0.00019726,2]
[326617393,1715149859924,-500.0,0.00019726,2]
[326617394,1715149859934,-380.44,0.00019726,2]
[326617395,1715149859943,-500.0,0.00019726,2]
[326617396,1715149859953,-296.12,0.00019726,2]
[326617397,1715149859963,-516.26525995,0.00019726,2]
[326617398,1715149859972,-500.0,0.00019726,2]
[326617399,1715149859982,-500.0,0.00019726,2]
[326617400,1715149859991,-192.29874586,0.00019726,2]
[326617401,1715149860001,-513.71684705,0.00019726,2]
[326617402,1715149860012,-522.04734537,0.00019726,2]
[326617403,1715149860022,-515.98526799,0.00019726,2]
[326617404,1715149860031,-537.78779152,0.00019726,2]
[326617405,1715149860041,-537.87057876,0.00019726,2]
[326617406,1715149860051,-500.0,0.00019726,2]
[326617407,1715149860061,-519.43647548,0.00019726,2]
[326617408,1715149860071,-500.0,0.00019726,2]
[326617409,1715149860080,-512.4109014,0.00019726,2]
[326617410,1715149860091,-500.0,0.00019726,2]
[326617411,1715149860101,-500.0,0.00019726,2]
[326617412,1715149860111,-509.18798836,0.00019726,2]
[326617413,1715149860121,-500.0,0.00019726,2]
[326617414,1715149860131,-575.2,0.00019726,2]
[326617415,1715149860141,-522.7449177,0.00019726,2]
[326617416,1715149860152,-500.0,0.00019726,2]
[326617417,1715149860161,-500.0,0.00019726,2]
[326617418,1715149860171,-500.0,0.00019726,2]
[326617419,1715149860180,-513.86000468,0.00019726,2]
[326617420,1715149860190,-635.04175026,0.00019726,2]
[326617421,1715149860200,-500.0,0.00019726,2]
[326617422,1715149860211,-611.50755781,0.00019726,2]
[326617423,1715149860221,-513.38588508,0.00019726,2]
[326617424,1715149860232,-500.0,0.00019726,2]
[326617425,1715149860242,-500.0,0.00019726,2]
[326617426,1715149860251,-543.87256479,0.00019726,2]
[326617427,1715149860261,-510.43615326,0.00019726,2]
[326617428,1715149860270,-500.0,0.00019726,2]
[326617429,1715149860280,-500.0,0.00019726,2]
[326617430,1715149860289,-500.0,0.00019726,2]
[326617431,1715149860299,-516.15190496,0.00019726,2]
[326617432,1715149860310,-523.25752632,0.00019726,2]
[326617433,1715149860320,-556.86230748,0.00019726,2]
[326617434,1715149860330,-515.86085989,0.00019726,2]
[326617435,1715149860339,-528.23254922,0.00019726,2]
[326617436,1715149860348,-500.0,0.00019726,2]
[326617437,1715149860358,-509.98503487,0.00019726,2]
[326617438,1715149860367,-500.0,0.00019726,2]
[326617439,1715149860378,-500.0,0.00019726,2]
[326617440,1715149860389,-151.0,0.00019726,2]
[326617441,1715149860398,-512.53721573,0.00019726,2]
[326617442,1715149860407,-507.26438417,0.00019726,2]
[326617443,1715149860417,-500.0,0.00019726,2]
[326617444,1715149860427,-519.15171819,0.00019726,2]
[326617445,1715149860437,-151.0,0.00019726,2]
[326617446,1715149860447,-358.87644261,0.00019726,2]
[326617447,1715149860456,-500.0,0.00019726,2]
[326617448,1715149860466,-500.0,0.00019726,2]
[326617449,1715149860476,-586.79,0.00019726,2]
[326617450,1715149860487,-500.0,0.00019726,2]
[326617451,1715149860496,-500.0,0.00019726,2]
[326617452,1715149860506,-500.0,0.00019726,2]
[326617453,1715149860517,-500.0,0.00019726,2]
[326617454,1715149860527,-511.74059319,0.00019726,2]
[326617455,1715149860537,-500.0,0.00019726,2]
[326617456,1715149860547,-500.0,0.00019726,2]
[326617457,1715149860558,-528.13214565,0.00019726,2]
[326617458,1715149860567,-150.0,0.00019726,2]
[326617459,1715149860577,-500.0,0.00019726,2]
[326617460,1715149860587,-516.09578805,0.00019726,2]
[326617461,1715149860597,-500.0,0.00019726,2]
[326617462,1715149860607,-500.0,0.00019726,2]
[326617463,1715149860616,-516.95987212,0.00019726,2]
[326617464,1715149860627,-500.0,0.00019726,2]
[326617465,1715149860636,-586.08158395,0.00019726,2]
[326617466,1715149860646,-269.11816292,0.00019726,2]
[326617467,1715149860656,-500.0,0.00019726,2]
[326617468,1715149860666,-511.11100107,0.00019726,2]
[326617469,1715149860675,-500.0,0.00019726,2]
[326617470,1715149860686,-500.0,0.00019726,2]
[326617471,1715149860695,-515.55756289,0.00019726,2]
[326617472,1715149860705,-525.28913085,0.00019726,2]
[326617473,1715149860716,-151.0,0.00019726,2]
[326617474,1715149860726,-500.0,0.00019726,2]
[326617475,1715149860736,-1133.31,0.00019726,2]
[326617476,1715149860747,-500.0,0.00019726,2]
[326617477,1715149860757,-500.0,0.00019726,2]
[326617478,1715149860766,-500.0,0.00019726,2]
[326617479,1715149860777,-503.25900604,0.00019726,2]
[326617480,1715149860787,-513.70785156,0.00019726,2]
[326617481,1715149860796,-500.0,0.00019726,2]
[326617482,1715149860806,-628.28630835,0.00019726,2]
[326617483,1715149860816,-500.0,0.00019726,2]
[326617484,1715149860826,-265.44575813,0.00019726,2]
[326617485,1715149860835,-500.0,0.00019726,2]
[326617486,1715149860845,-212.74591569,0.00019726,2]
[326617487,1715149860855,-209.65,0.00019726,2]
[326617488,1715149860865,-578.82043363,0.00019726,2]
[326617489,1715149860877,-512.17185303,0.00019726,2]
[326617490,1715149860887,-500.0,0.00019726,2]
[326617491,1715149860896,-500.0,0.00019726,2]
[326617492,1715149860906,-500.0,0.00019726,2]
[326617493,1715149860915,-515.21170969,0.00019726,2]
[326617494,1715149860925,-260.33745665,0.00019726,2]
[326617495,1715149860935,-500.0,0.00019726,2]
[326617496,1715149860944,-524.74579064,0.00019726,2]
[326617497,1715149860954,-500.0,0.00019726,2]
[326617498,1715149860965,-515.48212807,0.00019726,2]
[326617499,1715149860975,-322.54280604,0.00019726,2]
[326617500,1715149860985,-519.74632474,0.00019726,2]
[326617501,1715149860996,-500.0,0.00019726,2]
[326617502,1715149861006,-500.0,0.00019726,2]
[326617503,1715149861017,-508.23079595,0.00019726,2]
[326617504,1715149861027,-596.09199394,0.00019726,2]
[326617505,1715149861038,-500.0,0.00019726,2]
[326617506,1715149861048,-500.0,0.00019726,2]
[326617507,1715149861058,-500.0,0.00019726,2]
[326617508,1715149861068,-500.0,0.00019726,2]
[326617509,1715149861078,-500.0,0.00019726,2]
[326617510,1715149861166,-500.0,0.00019726,2]
[326617511,1715149861186,-500.0,0.00019726,2]
[326617512,1715149861196,-500.0,0.00019726,2]
[326617513,1715149861206,-500.0,0.00019726,2]
[326617514,1715149861216,-500.0,0.00019726,2]
[326617515,1715149861229,-3026.24,0.00019726,2]
[326617516,1715149861239,-512.08301063,0.00019726,2]
[326617517,1715149861248,-648.49260139,0.00019726,2]
[326617518,1715149861258,-500.0,0.00019726,2]
[326617519,1715149861269,-500.0,0.00019726,2]
[326617520,1715149861279,-507.2619047,0.00019726,2]
[326617521,1715149861288,-560.76188992,0.00019726,2]
[326617522,1715149861299,-500.0,0.00019726,2]
[326617523,1715149861312,-522.70473046,0.00019726,2]
[326617524,1715149861322,-500.0,0.00019726,2]
[326617525,1715149861331,-500.0,0.00019726,2]
[326617526,1715149861341,-500.0,0.00019726,2]
[326617527,1715149861350,-500.0,0.00019726,2]
[326617528,1715149861359,-500.0,0.00019726,2]
[326617529,1715149861369,-517.03,0.00019726,2]
[326617530,1715149861380,-500.0,0.00019726,2]
[326617531,1715149861389,-500.0,0.00019726,2]
[326617532,1715149861400,-532.18,0.00019726,2]
[326617533,1715149861409,-500.0,0.00019726,2]
[326617534,1715149861418,-500.0,0.00019726,2]
[326617535,1715149861428,-1991.71,0.00019726,2]
[326617536,1715149861436,-520.69567182,0.00019726,2]
[326617537,1715149861446,-500.0,0.00019726,2]
[326617538,1715149861455,-1441.2,0.00019726,2]
[326617539,1715149861464,-519.44685732,0.00019726,2]
[326617540,1715149861474,-500.0,0.00019726,2]
[326617541,1715149861484,-500.0,0.00019726,2]
[326617542,1715149861494,-500.0,0.00019726,2]
[326617543,1715149861504,-500.0,0.00019726,2]
[326617544,1715149861513,-500.0,0.00019726,2]
[326617545,1715149861524,-1488.67,0.00019726,2]
[326617546,1715149861533,-500.0,0.00019726,2]
[326617547,1715149861543,-526.50248137,0.00019726,2]
[326617548,1715149861552,-500.0,0.00019726,2]
[326617549,1715149861561,-500.0,0.00019726,2]
[326617550,1715149861571,-500.0,0.00019726,2]
[326617551,1715149861580,-500.0,0.00019726,2]
[326617552,1715149861590,-500.0,0.00019726,2]
[326617553,1715149861600,-171.88442477,0.00019726,2]
[326617554,1715149861609,-228.84,0.00019726,2]
[326617555,1715149861619,-500.0,0.00019726,2]
[326617556,1715149861630,-535.63898023,0.00019726,2]
[326617557,1715149861640,-448.5598255,0.00019726,2]
[326617558,1715149861650,-500.0,0.00019726,2]
[326617559,1715149861660,-500.0,0.00019726,2]
[326617560,1715149861670,-500.0,0.00019726,2]
[326617561,1715149861680,-861.02,0.00019726,2]
[326617562,1715149861690,-500.0,0.00019726,2]
[326617563,1715149861700,-500.0,0.00019726,2]
[326617564,1715149861709,-512.43676673,0.00019726,2]
[326617565,1715149861719,-542.45035758,0.00019726,2]
[326617566,1715149861729,-500.0,0.00019726,2]
[326617567,1715149861739,-569.80930686,0.00019726,2]
[326617568,1715149861750,-500.0,0.00019726,2]
[326617569,1715149861759,-500.0,0.00019726,2]
[326617570,1715149861769,-500.0,0.00019726,2]
[326617571,1715149861778,-522.41306843,0.00019726,2]
[326617572,1715149861788,-500.0,0.00019726,2]
[326617573,1715149861797,-500.0,0.00019726,2]
[326617574,1715149861807,-500.0,0.00019726,2]
[326617575,1715149861817,-518.66787029,0.00019726,2]
[326617576,1715149861827,-447.818712,0.00019726,2]
[326617577,1715149861837,-500.0,0.00019726,2]
[326617578,1715149861846,-500.0,0.00019726,2]
[326617579,1715149861856,-511.2318012,0.00019726,2]
[326617580,1715149861865,-547.50371192,0.00019726,2]
[326617581,1715149861876,-3534.18,0.00019726,2]
[326617582,1715149861886,-526.09183971,0.00019726,2]
[326617583,1715149861896,-558.82900973,0.00019726,2]
[326617584,1715149861906,-982.56,0.00019726,2]
[326617585,1715149861915,-500.0,0.00019726,2]
[326617586,1715149861925,-421.50780509,0.00019726,2]
[326617587,1715149861934,-516.78673435,0.00019726,2]
[326617588,1715149861943,-500.0,0.00019726,2]
[326617589,1715149861953,-582.52,0.00019726,2]
[326617590,1715149861962,-525.23824426,0.00019726,2]
[326617591,1715149861973,-500.0,0.00019726,2]
[326617592,1715149861983,-500.0,0.00019726,2]
[326617593,1715149861992,-555.54329864,0.00019726,2]
[326617594,1715149862002,-500.0,0.00019726,2]
[326617595,1715149862011,-500.0,0.00019726,2]
[326617596,1715149862021,-402.19671231,0.00019726,2]
[326617597,1715149862031,-500.0,0.00019726,2]
[326617598,1715149862041,-500.0,0.00019726,2]
[326617599,1715149862050,-372.00505252,0.00019726,2]
[326617600,1715149862060,-500.0,0.00019726,2]
[326617601,1715149862069,-332.63915621,0.00019726,2]
[326617602,1715149862079,-500.0,0.00019726,2]
[326617603,1715149862088,-500.0,0.00019726,2]
[326617604,1715149862097,-377.67586521,0.00019726,2]